Cogmind - Beta 10.1 @@@ ROGUE MODE // 2020.10.23 @ 18:30:03 Player: W_W Result: Smashed by cave-in Performance ------------- Evolutions (0) 0 Regions Visited (2) 400 Robots Destroyed (55) 275 Value Destroyed (662) 662 Prototype IDs (5) 100 Alien Tech Used (0) 0 Bonus (0) 0 TOTAL SCORE: 1437 Bonus ------- None Cogmind --------- Core Integrity 0/250 Matter 110/300 Energy 100/100 System Corruption 3% Temperature Cool (0) Movement Core (600) Ox11 Location -10/Mines Parts ------- > --- POWER (1) -------- (None) > --- PROPULSION (2) --- (None) > --- UTILITY (2) ------ Large Storage Unit Large Storage Unit > --- WEAPON (2) ------- Assault Rifle > --- INVENTORY (16) --- High-capacity Matter Pod (200) Weight Redist. System Signal Interpreter ECM Suite Medium Armor Plating Medium Armor Plating Hardened Light Armor Plating Hardened Light Armor Plating Hacking Suite Particle Gun Rocket Launcher Datajack Mining Laser Peak State ------------ > --- POWER ------------ Ion Engine > --- PROPULSION ------- Light Treads Light Treads > --- UTILITY ---------- Large Storage Unit Large Storage Unit > --- WEAPON ----------- Light Cannon Mining Laser > --- INVENTORY -------- Ion Engine High-capacity Matter Pod Weight Redist. System Signal Interpreter ECM Suite Light Armor Plating Hardened Light Armor Plating Hacking Suite Particle Gun Assault Rifle Grenade Launcher Grenade Launcher Grenade Launcher Grenade Launcher Datajack [Rating: 9] Favorites ----------- Power Ion Engine Engine Ion Engine Propulsion Light Treads Treads Light Treads Flight Unit Flight Unit Utility Small Storage Unit Device ECM Suite Storage Small Storage Unit Weapon Assault Rifle Energy Gun Small Laser Ballistic Gun Assault Rifle Ballistic Cannon Light Cannon Launcher Grenade Launcher Special Weapon Mining Laser Build | -11 -10 -10 ------- Run | Scr Mat Min Slots Evolved . | . . . Power . | . . . Propulsion . | . . . Utility . | . . . Weapon . | . . . Parts Attached 35 | 6 24 5 Power 5 | 1 4 . Engine 5 | 1 4 . Core . | . . . Reactor . | . . . Propulsion 9 | 2 7 . Treads 7 | 2 5 . Leg . | . . . Wheel . | . . . Hover . | . . . Flight 2 | . 2 . Utility 6 | 1 5 . Device 2 | . 2 . Storage 4 | 1 3 . Processor . | . . . Hackware . | . . . Protection . | . . . Artifact . | . . . Weapon 15 | 2 8 5 Energy Gun 2 | 1 1 . Energy Cannon . | . . . Ballistic Gun 5 | 1 3 1 Ballistic Cannon 2 | . 1 1 Launcher 3 | . . 3 Special Weapon 3 | . 3 . Impact Weapon . | . . . Slashing Weapon . | . . . Piercing Weapon . | . . . Special Melee Weapon . | . . . Unidentified Prototypes . | . . . Parts Lost 9 | . 2 7 Power 1 | . . 1 Propulsion 2 | . . 2 Utility . | . . . Weapon 6 | . 2 4 Highest Loss Streak 7 | . 2 7 Average Slot Usage (%) 97 | . 98 77 Engine 13 | . 14 6 Treads 27 | . 27 18 Device 10 | . 11 . Storage 15 | . 15 28 Ballistic Gun 13 | . 13 6 Ballistic Cannon 12 | . 12 8 Naked Turns . | . . . Heaviest Build 42 | 10 42 42 Greatest Support 40 | 40 40 40 Greatest Overweight (x) 12 | . 3 12 Average Overweight (x) . | . . 2 Largest Inventory Capacity 16 | 6 16 16 Average Capacity 7 | 5 7 16 Most Carried 16 | 5 16 16 Average Carried 6 | 3 6 15 Final Capacity 16 | 6 16 16 Final Carried 16 | 5 16 13 Class Distribution -------------------- 100% | Mutant Dominant Class ---------------- Mutant | -10/Materials Mutant | -10/Mines Resources | -11 -10 -10 ----------- Run | Scr Mat Min Matter Collected 1414 | 406 1008 . Remotely . | . . . Salvage Created 1373 | 369 948 56 Parts 87 | 33 52 2 Haulers Intercepted 2 | . 2 . Recyclers Shooed 2 | . 2 . Parts Field Recycled . | . . . Retrieved Matter . | . . . Parts Self-Destructed . | . . . Prevented . | . . . Kills | -11 -10 -10 ------- Run | Scr Mat Min Combat Hostiles Destroyed 23 | . 8 15 Guns 4 | . 4 . Cannons 7 | . 4 3 AOE 12 | . . 12 Classes Destroyed 10 | 3 5 2 Worker 7 | 4 3 . Builder 3 | . 3 . Tunneler 9 | 9 . . Hauler 2 | . 2 . Recycler 6 | 1 5 . Operator 2 | . 2 . Watcher 3 | . 3 . Grunt 8 | . 8 . Demolisher 2 | . . 2 Assembled 13 | . . 13 Best Kill Streak 13 | 5 4 13 Combat Bots Only 13 | . 3 13 Max Kills in Single Turn 6 | 2 1 6 Gunslinging . | . . . Exploded 6 | . . 6 Melee . | . . . Uniques/NPCs Destroyed . | . . . Combat | -11 -10 -10 -------- Run | Scr Mat Min Damage Taken 1303 | . 391 912 Core 269 | . 62 207 Absorbed by Shields . | . . . Core Remaining (%) 100 | 100 . . Volleys Fired 130 | 32 86 12 Largest 2 | 2 2 2 Hottest 100 | 60 100 60 Shots Fired 243 | 63 156 24 Gun 163 | 63 95 5 Cannon 62 | . 57 5 Launcher 14 | . . 14 Special 4 | . 4 . Kinetic 181 | 32 139 10 Thermal 48 | 31 17 . Explosive 14 | . . 14 Electromagnetic . | . . . Robot Hit Streak 16 | 16 13 10 Robot Miss Streak 7 | 2 7 2 Penetration Max . | . . . Secondary Targets . | . . . Shots Hit Robots 149 | 42 97 10 Core Hits 87 | 15 40 32 Critical Hits 2 | 1 1 . Critical Kills 1 | 1 . . Critical Parts Destroyed 1 | . 1 . Melee Attacks . | . . . Impact . | . . . Slashing . | . . . Piercing . | . . . Sneak Attacks . | . . . Combat Hostiles . | . . . Follow-up Attacks . | . . . Damage Inflicted 2609 | 497 1320 792 Guns 1370 | 497 808 65 Cannons 582 | . 511 71 Explosions 656 | . . 656 Melee . | . . . Ramming 1 | . 1 . Kinetic 1547 | 234 1177 136 Thermal 405 | 263 142 . Explosive 656 | . . 656 Electromagnetic . | . . . Impact . | . . . Slashing . | . . . Piercing . | . . . Highest Corruption 2 | . 2 2 Average Corruption 1 | . 1 2 Corruption Purged . | . . . Effects 15 | . 12 3 Message Errors 4 | . 4 . Heat Flow Errors 1 | . 1 . Energy Discharges 2 | . 2 . Data Loss (minor) 7 | . 5 2 Targeting Errors 1 | . . 1 Overload Shots . | . . . Overflow Damage 30 | . 18 12 Projectiles 18 | . 18 . Explosions 12 | . . 12 Melee . | . . . Knockbacks 9 | . 8 1 Impact . | . . . Kinetic 9 | . 8 1 Secondary . | . . . Self-Inflicted Damage 101 | . . 101 Shots 4 | . . 4 Rammed 1 | . 1 . Targets Rammed 1 | . 1 . Kicked . | . . . Crushed . | . . . Highest Temperature 142 | . 142 32 Average Temperature 34 | . 35 18 Received Heat Transfer 273 | . 213 60 Siege Activations . | . . . Robots Corrupted . | . . . Combat Hostiles . | . . . Parts Fried . | . . . Impact Corruptions . | . . . Robots Melted . | . . . Combat Hostiles . | . . . Parts Melted 2 | 1 1 . Heat Transferred 972 | 600 372 . Parts Sabotaged . | . . . Parts Stolen . | . . . Parts Stripped . | . . . Power Chain Reactions . | . . . Missiles Intercepted . | . . . Alert | -11 -10 -10 ------- Run | Scr Mat Min Peak Influence 233 | 70 233 50 Initial 45 | . 45 5 Average 48 | 35 52 8 Maximum Alert Level 1 | . 1 . Low Security (%) 95 | 100 95 100 Level 1 4 | . 4 . Level 2 . | . . . Level 3 . | . . . Level 4 . | . . . Level 5 . | . . . High Security . | . . . Max Security . | . . . Squads Dispatched 3 | . 3 . Investigation 1 | . 1 . Extermination . | . . . Reinforcement 2 | . 2 . Assault . | . . . Garrison . | . . . Intercept . | . . . Construction Impeded . | . . . Haulers Reinforced . | . . . Stealth | -11 -10 -10 --------- Run | Scr Mat Min Distress Signals 1 | . 1 . Communications Jammed . | . . . Distress Signals . | . . . Times Spotted 36 | . 20 16 Peak Tracking Total 9 | . 3 9 Tactical Retreats . | . . . Traps | -11 -10 -10 ------- Run | Scr Mat Min Traps Triggered 4 | . 4 . Indirectly . | . . . Trap Hack Attempts . | . . . Triggered . | . . . Disarmed . | . . . Reprogrammed . | . . . Reused . | . . . Traps Extracted . | . . . Installed . | . . . Triggered . | . . . Machines | -11 -10 -10 ---------- Run | Scr Mat Min Machines Disabled 4 | . 4 . Max in Single Turn 1 | . 1 . Machines Sabotaged . | . . . Garrisons Compromised . | . . . Overloaded Fab Kills . | . . . Fab Network Shutdowns . | . . . Hacking | -11 -10 -10 --------- Run | Scr Mat Min Machines Accessed 7 | . 7 . Terminals 5 | . 5 . Fabricators . | . . . Repair Stations . | . . . Recycling Units 2 | . 2 . Scanalyzers . | . . . Garrison Access . | . . . Total Hacks 22 | . 22 . Successful 16 | . 16 . Failed 6 | . 6 . Catastrophic . | . . . Database Lockouts . | . . . Manual . | . . . Terminals 15 | . 15 . Fabricators . | . . . Repair Stations . | . . . Recycling Units 7 | . 7 . Scanalyzers . | . . . Garrison Access . | . . . Terminal Hacks 9 | . 9 . Record 3 | . 3 . Robot Analysis 1 | . 1 . Prototype ID Bank 3 | . 3 . Unreport Threat 1 | . 1 . Locate Traps 1 | . 1 . Fabricator Hacks . | . . . Repair Station Hacks . | . . . Recycling Unit Hacks 7 | . 7 . Process 3 | . 3 . Report Inventory 3 | . 3 . Retrieve Matter 1 | . 1 . Scanalyzer . | . . . Garrison Access Hacks . | . . . Unauthorized Hacks . | . . . Terminals . | . . . Fabricators . | . . . Repair Stations . | . . . Recycling Units . | . . . Scanalyzers . | . . . Garrison Access . | . . . Data Cores Recovered . | . . . Used . | . . . Hacking Detections 6 | . 6 . Full Trace Events . | . . . Feedback Events . | . . . Feedback Blocked . | . . . Robot Schematics Acquired . | . . . Robots Built . | . . . Matter . | . . . Time . | . . . Total Robot Build Rating . | . . . Part Schematics Acquired . | . . . Parts Built . | . . . Matter . | . . . Time . | . . . Total Part Build Rating . | . . . Parts Repaired . | . . . Time . | . . . Parts Recycled . | . . . Recycled Matter 42 | . 42 . Retrieved Matter 42 | . 42 . Retrieved Components . | . . . Parts Scanalyzed . | . . . Part Schematics Acquired . | . . . Parts Damaged . | . . . Bothacking | -11 -10 -10 ------------ Run | Scr Mat Min Used RIF Installer . | . . . Robots Hacked . | . . . Non-combat . | . . . Combat . | . . . Robot Hacks Applied . | . . . Relay Couplers Released . | . . . Robots Rewired . | . . . Allies Hacked . | . . . Hacks Repelled . | . . . Allies | -11 -10 -10 -------- Run | Scr Mat Min Total Allies . | . . . Largest Group . | . . . Highest-Rated Group . | . . . Highest-Rated Ally . | . . . Total Orders . | . . . Ally Attacks . | . . . Total Damage . | . . . Kills . | . . . Allies Corrupted . | . . . Allies Melted . | . . . Intel | -11 -10 -10 ------- Run | Scr Mat Min Robot Analysis Total 1 | . 1 . Derelict Logs Recovered . | . . . Drone Launches . | . . . Drone Recoveries . | . . . Exploration | -11 -10 -10 ------------- Run | Scr Mat Min Turns Passed 2253 | 338 1847 68 Spaces Moved 998 | 144 843 11 Core 4 | 3 . 1 Treads 985 | 141 834 10 Legs . | . . . Wheels . | . . . Hover . | . . . Flight 9 | . 9 . Fastest Speed 50 | 50 117 180 Average Speed 162 | 157 162 222 Slowest Speed 650 | 160 280 650 Overloaded Moves . | . . . Propulsion Burnouts . | . . . Robots Hopped . | . . . Cave-ins Triggered 1 | . . 1 Exploration Rate (%) 37 | 5 98 10 Regions Visited 2 Branch Regions 1 Pre-discovered Areas . | . . . Known Exits Taken . | . . . Unknown Exits Taken 2 | 1 1 . Scrap Searched . | . . . Spaces Dug 17 | . 4 13 Terrain Destroyed 72 | . 4 68 Melee . | . . . Projectile 4 | . 4 . AOE 68 | . . 68 Terrain Rammed . | . . . Walls Destroyed . | . . . Machines Disabled . | . . . Actions | -11 -10 -10 --------- Run | Scr Mat Min Total 1384 | 189 1163 32 Wait 170 | 3 165 2 Move 996 | 143 842 11 Hop . | . . . Pick Up 29 | 5 23 1 Fast Attach 13 | 6 7 . Attach 6 | . 3 3 Detach 3 | . 3 . Swap 16 | . 14 2 Drop 20 | . 19 1 Fire 130 | 32 86 12 Melee . | . . . Ram . | . . . Kick . | . . . Crush 1 | . 1 . Escape Stasis . | . . . Rewire . | . . . Trap . | . . . Miscellaneous . | . . . Route ------- -11/Scrapyard -10/Materials (discovered 5 exits: [*Mat x3] / [*Min x2]) -10/Mines History --------- Turn | Location | Event 7 | -11/Scrapyard | Discovered new exit (range 16) 339 | -11/Scrapyard | Entered Materials 340 | -10/Materials | Build established: Mutant 620 | -10/Materials | Discovered new exit (range 16) 782 | -10/Materials | Discovered new exit (range 13) 939 | -10/Materials | Discovered new exit (range 10) 1105 | -10/Materials | Discovered new exit (range 4) 1326 | -10/Materials | Discovered new exit (range 7) 2186 | -10/Materials | Entered Mines 2189 | -10/Mines | Assembled infested the area 2193 | -10/Mines | Received a Rocket Launcher from a helpful Derelict 2212 | -10/Mines | Core integrity fell below 50% 2240 | -10/Mines | Destroyed 13 combat bots 2250 | -10/Mines | Core integrity fell below 20% 2255 | -10/Mines | Crushed by falling debris 2255 | -10/Mines | Smashed by cave-in Last Messages --------------- 02219_ as-79191 destroyed. 02219_ Grenade Launcher destroyed. 02219_ Destroyed Grenade Launcher. 02219_ as-23364 destroyed. 02221_ The unstable cave ceiling collapses. 02233_ System corrupted: Component data lost. 02238_ The unstable cave ceiling collapses. 02238_ Grenade Launcher destroyed. 02240_ Lgt. Treads destroyed. 02241_ D-53 Grenadier destroyed. 02247_ The unstable cave ceiling collapses. 02250_ K-01 Serf collects debris. 02251_ The unstable cave ceiling collapses. 02253_ K-01 Serf collects debris. 02253_ System corrupted: Lgt. Cannon targeting data glitched. 02253_ D-53 Grenadier destroyed. 02255_ The unstable cave ceiling collapses. 02255_ Crushed by falling debris. 02255_ Lgt. Cannon destroyed. 02255_ System corrupted by crushing effect (+1). Map ----- +----------------------------------------------------+ | ?????????????????????????????????????????????????? | | ?????????????????????????????????????????????????? | | ?????????????????????????????????????????????????? | | ?????????????????????????????????????????????????? | | ?????????????????????????????????????????????????? | | ?????????????????????????????????????????????????? | | ?????????????????????????????????????????????????? | | ?????????????????????????????????????????????????? | | ?????????????????????????????????????????????????? | | ?????????????????????????????????????????????????? | | ??????????????????????? ?????????????????????????? | | ?????????????????????? ?????????????????????????? | | ??????????????????????# ?????????????????????????? | | ???????????????? #?## ?????????##??????????????? | | ??????????????$ ## ??????? ???????????????? | | ?????????????? ?????? ????????????????? | | ??????????????? ?????? #????????????????? | | ???????????????? r ????? #????????????????? | | ????????????????? ???? ##???????????????? | | ?????????????????? ???? ##??????????????? | | ???????????????????# ##? #??????????????? | | ????????????????????# ## t ???????????????? | | ?????????????????????# # ?????????????????? | | ?????????????????????# #??????????????????? | | ????????????????????## ##?????????????????? | | ????????????????????# @ #?????????????????? | | ????????????????????# ##?????????????????? | | ????????????????????# #?????????????????? | | ????????????????????## ##?????????????????? | | ?????????????????????## #?????????????????? | | ?????????????????????# #?????????????????? | | ?????????????????????# #?????????????????? | | ?????????????????????## #?????????????????? | | ??????????????????????# %= ????????????????? | | ??????????????????????# ] #???????????????? | | ??????????????????????## #???????????????? | | ???????????????????????# ??????????????? | | ??????????????????????? k ##?????????????? | | ??????????????????????? k ??????????????? | | ??????????????????????? # #?????????????? | | ??????????????????????? ## ###?????????????? | | ?????????????????????????? ???????????????? | | ?????????????????????????? #?????????????????? | | ???????????????????????????##? ??????????????????? | | ?????????????????????????????????????????????????? | | ?????????????????????????????????????????????????? | | ?????????????????????????????????????????????????? | | ?????????????????????????????????????????????????? | | ?????????????????????????????????????????????????? | | ?????????????????????????????????????????????????? | +----------------------------------------------------+ Best States ------------- Heat Dissipation 25 Energy Generation 10 Energy Capacity 250 Matter Stores 300 Matter Capacity 300 Sight Range 16 Terrain Scan Density 10 ECM Strength 1 Evasion (%) 40 Recoil Reduction 2 Item Schematics ----------------- None Robot Schematics ------------------ None Fabricated ------------ Nothing Alien Tech Used ----------------- None Achievements -------------- None Challenges ------------ None Game ------ Seed ComponentCoolingRouter Manual? 0 Play Time 00:27:03 Cumulative 37.8 hours Start 2020.10.23 @ 18:03:45 End 2020.10.23 @ 18:30:03 Sessions 1 Manual Loads 0 Difficulty Rogue Special Mode None Game No. 36 Rogue 36 Adventurer 0 Explorer 0 Win Type - Total 0 Types 0/0/0/0/0/0/0/0/0 Lore% 25 Gallery% 25 Achievement% 23 Wizard Run 0 Options --------- ASCII 0 Keyboard 0 Movement Mouse Keybinds 0 Fullscreen 1 Font 18/SmallcapsGlow Map View 76x50 Tactical HUD 1 Map Filters NONE Filters NONE Steam 1 RUN: 4e13e94b-855e-459c-be56-e8a510cee610